Cogmind - Beta 13 *** ADVENTURER MODE // 2024.07.21 @ 23:41:38 Player: AnotherZach Result: Destroyed by Y-72 Warden with Quantum Rifle Performance ------------- Evolutions (7) 3500 Regions Visited (17) 3400 Robots Destroyed (352) 1760 Value Destroyed (14894) 14894 Prototype IDs (37) 740 Alien Tech Used (2) 400 Bonus (5291) 5291 TOTAL SCORE: 29985 Bonus ------- High Alert Combat Kills 2166 Follower Combat Kills 222 Met Zhirov 300 Met Warlord at Base 500 MAIN.C Attacked Warlord 500 Warlord Defense Kills 1740 Friendly Fire -137 Cogmind --------- Core Integrity 0/1300 Matter 260/300 Energy 18/100 System Corruption 12% Temperature Cool (9) Movement Core (900) Ox17 Location -3/Research Parts ------- > --- POWER (2) -------- (None) > --- PROPULSION (6) --- (None) > --- UTILITY (9) ------ Scrap Engine Experimental Thermal Generator Advanced Heat Sink High-capacity Storage Unit Enhanced Optical Array Advanced Target Analyzer Advanced System Shield > --- WEAPON (4) ------- (None) > --- INVENTORY (20) --- Advanced Heat Sink Advanced Coolant Injector Advanced Energy Well (366) Matter Compressor (250) Advanced Signal Interpreter Experimental Armor Integrity Analyzer Precision Energy Filter Stasis Canceller Improved Hacking Suite Authchip [R/NC] Authchip [R/Combat] Improved Dynamic Insulation System Peak State ------------ > --- POWER ------------ Light Particle Reactor Micro Antimatter Reactor > --- PROPULSION ------- Centrium Leg Centrium Leg Hovering Antigrav-Myomer Exoskeleton > --- UTILITY ---------- Armored Scrap Engine Experimental Cooling System Advanced Coolant Injector High-capacity Storage Unit Enhanced Optical Array Improved Phase Shifter System Mapper Makeshift System Shield > --- WEAPON ----------- Coil Gun Zero Construct/G Vortex Lance > --- INVENTORY -------- Light Antimatter Reactor Particle Reactor Myomer Leg Myomer Leg Large Storage Unit Advanced Energy Well Matter Compressor Advanced Signal Interpreter Advanced Target Analyzer Experimental Armor Integrity Analyzer Stasis Canceller Advanced Thermal Shield Improved Remote Force Field Authchip [R/NC] Improved Dynamic Insulation System Advanced Trap Extractor Vortex Cannon Improved Plasma Cutter [Rating: 153] Favorites ----------- Power Constructs Engine F-cell Engine Power Core Neutrino Core Reactor Constructs Propulsion Constructs Treads Light Treads Leg Flexi-carbon Leg Wheel Wheel Hover Unit Constructs Flight Unit VTOL Module Utility Armored Scrap Engine Device Armored Scrap Engine Storage High-capacity Storage Unit Processor Advanced Targeting Computer Hackware Hacking Suite Protection Makeshift Light Armor Plating Weapon Constructs Energy Gun Constructs Energy Cannon Advanced Plasma Cannon Ballistic Gun Heavy Assault Rifle Ballistic Cannon Antimatter Cannon Launcher Scatter Rocket Array Special Weapon Improved Plasma Cutter Impact Weapon Hammer Slashing Weapon Greatsword Piercing Weapon Vortex Lance Build | -11 -10 -10 -8 -6 -6 -6 -5 -5 -5 -5 -4 -4 -4 -4 -4 -3 -3 ------- Run | Yrd Mat Sub Rec Fac Was Fac Fac Upp Upp Zhi Pro Fac Upp Upp War Pro Res Slots Evolved 14 | . . . . 8 . . 2 . . . . 2 . . . . 2 Power 1 | . . . . . . . 1 . . . . . . . . . . Propulsion 4 | . . . . 4 . . . . . . . . . . . . . Utility 7 | . . . . 3 . . 1 . . . . 2 . . . . 1 Weapon 2 | . . . . 1 . . . . . . . . . . . . 1 Parts Attached 345 | 7 17 22 13 28 11 49 21 7 3 10 2 35 8 6 36 12 58 Power 31 | 1 3 2 2 2 . 6 3 . . . . 4 . . 2 . 6 Engine 14 | 1 3 2 2 2 . 4 . . . . . . . . . . . Core 6 | . . . . . . 1 3 . . . . . . . 1 . 1 Reactor 11 | . . . . . . 1 . . . . . 4 . . 1 . 5 Propulsion 52 | 2 4 3 8 11 1 3 . . . . . . . . 10 3 7 Treads 12 | . . . 4 4 1 1 . . . . . . . . 1 . 1 Leg 25 | . . . . 7 . . . . . . . . . . 9 3 6 Wheel 13 | 2 4 3 4 . . . . . . . . . . . . . . Hover . | . . . . . . . . . . . . . . . . . . Flight 2 | . . . . . . 2 . . . . . . . . . . . Utility 158 | 2 3 3 3 6 5 24 13 3 2 8 2 27 4 6 11 7 29 Device 103 | 1 . 1 1 2 1 16 9 3 2 6 2 22 3 4 4 5 21 Storage 22 | 1 3 . 1 2 2 3 . . . 1 . . 1 2 3 . 3 Processor 11 | . . . . . 2 2 1 . . . . 3 . . . 1 2 Hackware 10 | . . . . . . 3 3 . . . . . . . 1 . 3 Protection 12 | . . 2 1 2 . . . . . 1 . 2 . . 3 1 . Artifact . | . . . . . . . . . . . . . . . . . . Weapon 104 | 2 7 14 . 9 5 16 5 4 1 2 . 4 4 . 13 2 16 Energy Gun 32 | . 2 . . 3 . 11 2 . . 1 . 1 2 . 5 . 5 Energy Cannon 26 | . 4 2 . 2 1 2 3 3 . . . 2 . . 2 2 3 Ballistic Gun 16 | 2 . 7 . 3 1 . . . . . . 1 . . . . 2 Ballistic Cannon 4 | . . . . 1 1 2 . . . . . . . . . . . Launcher 8 | . . . . . . 1 . 1 1 1 . . 1 . 2 . 1 Special Weapon 5 | . . . . . 1 . . . . . . . 1 . 1 . 2 Impact Weapon 7 | . 1 5 . . 1 . . . . . . . . . . . . Slashing Weapon 2 | . . . . . . . . . . . . . . . . . 2 Piercing Weapon 4 | . . . . . . . . . . . . . . . 3 . 1 Special Melee Weapon . | . . . . . . . . . . . . . . . . . . Unidentified Prototypes 23 | . . . . 2 . 4 . . . 4 . 3 1 . 6 . 3 Parts Lost 63 | . 1 4 . 1 7 5 . 3 . . . 7 . . 8 1 26 Power 10 | . 1 1 . . . 1 . 2 . . . 2 . . . . 3 Propulsion 19 | . . 2 . 1 3 2 . . . . . . . . 2 . 9 Utility 18 | . . 1 . . 1 2 . . . . . 3 . . 3 . 8 Weapon 16 | . . . . . 3 . . 1 . . . 2 . . 3 1 6 Highest Loss Streak 10 | . 1 1 . 1 7 2 . 2 . . . 2 . . 8 1 10 To Critical Strikes 4 | . . . . . 1 . . . . . . . . . 2 . 1 Average Slot Usage (%) 73 | . 99 99 99 89 55 61 62 58 58 57 58 65 63 63 67 67 69 Engine 4 | . 14 13 14 6 2 4 5 2 . . . 2 . . . . . Core 1 | . . . . . . . 4 4 5 5 5 . . . 1 5 . Reactor 2 | . . . . . . . . . . . . 6 10 10 7 5 6 Treads 2 | . . . 11 9 9 6 . . . . . . . . . . . Leg 4 | . . . . 23 13 1 . 4 5 5 5 1 . . 8 13 10 Wheel 6 | . 27 27 16 3 . . . . . . . . . . . . . Flight 1 | . . . . . . 4 5 . . . . 2 5 5 1 . 1 Device 11 | . 9 . 2 11 9 13 12 14 17 16 17 16 15 15 10 13 15 Storage 8 | . 18 17 14 6 2 5 5 5 5 5 5 5 5 5 6 5 4 Processor 3 | . . . . . 6 4 4 . . . . 6 10 10 7 . 4 Hackware 3 | . . . . . . . 4 7 5 5 5 5 5 5 6 5 9 Protection 3 | . . 10 11 7 . . . . . . . 2 . . 2 5 . Energy Gun 6 | . 16 . . 3 4 15 5 7 11 13 17 8 4 5 3 . 2 Energy Cannon 4 | . 4 11 . 2 . 1 9 4 1 . . 3 5 5 1 5 1 Ballistic Gun 4 | . 5 12 28 10 . . . 1 . . . 2 . . . . 2 Naked Turns . | . . . . . . . . . . . . . . . . . . Heaviest Build 142 | 12 57 61 99 109 106 51 65 61 48 50 48 67 82 62 111 142 130 Greatest Support 150 | 20 20 36 40 110 110 150 124 98 98 98 98 98 68 68 90 137 149 Greatest Overweight (x) 6 | . 5 5 3 1 1 . 1 . . . . 1 1 . 6 1 3 Average Overweight (x) . | . 1 1 2 . . . . . . . . . . . . . . Largest Inventory Capacity 25 | 8 20 20 25 25 25 15 15 15 15 15 15 15 20 20 20 20 20 Average Capacity 17 | 6 18 20 24 21 13 10 15 15 15 15 15 15 15 15 19 20 19 Most Carried 25 | 6 20 20 25 24 21 15 15 15 15 15 15 15 17 16 20 20 20 Average Carried 15 | 3 15 19 22 19 10 9 14 14 14 14 14 14 15 14 18 17 18 Final Capacity 25 | 8 20 20 25 25 5 15 15 15 15 15 15 15 20 15 20 20 20 Final Carried 25 | 6 19 18 25 21 4 14 14 15 15 15 15 15 17 15 20 18 12 Scrap Engine Consumption 289 | . . . . 13 . 72 14 4 . 2 1 85 5 2 34 13 44 Constructs Created 16 | . . . . . 1 1 . 3 . . . 3 . . 3 1 4 Constructs Modified 92 | . . . . . . 18 1 4 . . . 35 2 . 9 9 14 Class Distribution -------------------- 26% | Hacker-Construct 24% | Mutant 17% | Hacker-Mutant 6% | Scavenger-Gunner 6% | Construct 4% | Scavenger-Mutant Dominant Class ---------------- Mutant | -10/Materials Mutant | -10/Subcaves Scavenger-Mutant | -8/Recycling Scavenger-Tank | -6/Factory Mutant | -6/Waste Scavenger-Gunner | -6/Factory Construct | -5/Factory Hacker-Construct | -5/Upper Caves Hacker-Construct | -5/Upper Caves Hacker-Construct | -5/Zhirov Hacker-Construct | -4/Proximity Caves Hacker-Construct | -4/Factory Hacker-Construct | -4/Upper Caves Hacker-Construct | -4/Upper Caves Hacker-Mutant | -4/Warlord Hacker-Mutant | -3/Proximity Caves Hacker-Mutant | -3/Research Resources | -11 -10 -10 -8 -6 -6 -6 -5 -5 -5 -5 -4 -4 -4 -4 -4 -3 -3 ----------- Run | Yrd Mat Sub Rec Fac Was Fac Fac Upp Upp Zhi Pro Fac Upp Upp War Pro Res Matter Collected 6801 | 235 193 353 347 560 67 1070 241 302 463 242 158 864 150 70 571 159 756 Remotely . | . . . . . . . . . . . . . . . . . . Salvage Created 19363 | 108 508 771 936 573 814 3034 969 852 262 299 317 5540 351 77 316 208 3428 Parts 696 | 8 31 46 21 15 1 95 51 28 10 2 13 219 7 2 7 9 131 Haulers Intercepted 12 | . 2 . . . . 6 1 . . . . 3 . . . . . Recyclers Shooed 19 | . 2 . . 3 . 3 . . . . . 5 . . . . 6 Parts Field Recycled . | . . . . . . . . . . . . . . . . . . Retrieved Matter . | . . . . . . . . . . . . . . . . . . Parts Self-Destructed 73 | . . 13 . . . . . 26 11 1 14 . 3 . . 5 . Prevented 2 | . . . . . . . . 2 . . . . . . . . . Kills | -11 -10 -10 -8 -6 -6 -6 -5 -5 -5 -5 -4 -4 -4 -4 -4 -3 -3 ------- Run | Yrd Mat Sub Rec Fac Was Fac Fac Upp Upp Zhi Pro Fac Upp Upp War Pro Res Combat Hostiles Destroyed 252 | . 9 16 2 9 3 33 15 18 10 . 6 60 5 . 14 3 49 Melee 17 | . . . . . . . . . . . . . . . . . 17 Guns 132 | . 9 11 2 6 1 20 9 6 3 . 6 41 1 . . 1 16 Cannons 40 | . . 3 . 3 1 2 2 4 . . . 10 1 . 2 2 10 AOE 36 | . . . . . . 2 1 7 7 . . . 3 . 12 . 4 Classes Destroyed 28 | 2 5 5 . 1 1 4 1 1 . . 1 2 1 . 4 . . Worker 25 | . . . . . . 6 . . . . . 12 . . . . 7 Builder 15 | . 1 . . 1 . 4 . . . . . 6 . . . . 3 Tunneler 4 | 2 1 . . . . . . . . . . 1 . . . . . Hauler 12 | . 2 . . . . 6 1 . . . . 3 . . . . . Recycler 28 | 1 1 . 8 1 . 4 . . . . . 10 . . . . 3 Minesweeper 2 | . . . . . . . . . . . 1 . . . . 1 . Mechanic 2 | . . . . . . . 1 . . . . . . . . . 1 Operator 5 | . . . . . . 3 2 . . . . . . . . . . Turret 1 | . . 1 . . . . . . . . . . . . . . . Watcher 6 | . 2 . . . . . 1 . . . . 2 . . . . 1 Swarmer 59 | . 6 4 . . . 8 5 6 2 . 4 17 1 . . . 6 Saboteur 1 | . . . . . . . . . . . . . . . 1 . . Grunt 85 | . 3 2 . 7 . 14 1 7 5 . 2 17 1 . 5 1 20 Brawler 7 | . . . . 1 . 1 . 1 . . . . 1 . 2 . 1 Duelist 6 | . . . . . . . . 2 1 . . . 1 . 1 . 1 Protector 3 | . . . . . . . . . . . . . . . 2 . 1 Sentry 24 | . . 1 2 1 . 6 . 2 . . . 9 1 . . . 2 Demolisher 2 | . . . . . . . . . . . . . . . 2 . . Specialist 1 | . . . . . . . . . . . . . . . 1 . . Hunter 17 | . . . . . . 1 5 . . . . 4 . . . . 7 Programmer 31 | . . . . . . 3 4 . 2 . . 10 . . . 1 11 Heavy 1 | . . . . . . . . . . . . 1 . . . . . Behemoth 3 | . . . . . . . . . . . . 2 . . . 1 . Compactor 3 | . . . . . 3 . . . . . . . . . . . . Artisan 1 | . . 1 . . . . . . . . . . . . . . . Cobbler 2 | . . 2 . . . . . . . . . . . . . . . Subdweller 9 | . . 9 . . . . . . . . . . . . . . . Decomposer 1 | . . . . . . . . . . . . . . . . 1 . Packrat 1 | . . . . . . . . . . . . . 1 . . . . Tinkerer 1 | . . . . . . . . . . . . . 1 . . . . Best Kill Streak 14 | 2 5 4 2 4 1 5 5 7 8 . 4 14 5 . 7 2 11 Combat Bots Only 9 | . 5 3 1 3 1 4 5 7 8 . 4 9 5 . 7 1 9 Max Kills in Single Turn 5 | 1 2 2 1 1 1 4 1 4 4 . 2 2 3 . 4 1 5 Gunslinging 1 | . 1 1 . . . 1 . . 1 . 1 1 . . . . 1 Exploded 4 | . . . . . . 2 1 4 4 . . . 3 . 4 . 2 Melee 1 | . . . . . . . . . . . . . . . . . 1 Uniques/NPCs Destroyed . | . . . . . . . . . . . . . . . . . . Combat | -11 -10 -10 -8 -6 -6 -6 -5 -5 -5 -5 -4 -4 -4 -4 -4 -3 -3 -------- Run | Yrd Mat Sub Rec Fac Was Fac Fac Upp Upp Zhi Pro Fac Upp Upp War Pro Res Hostile Shots Fired 2322 | . 40 122 12 66 21 236 108 108 35 . 19 438 14 . 163 45 895 Missed 841 | . 14 41 4 23 1 89 46 38 14 . 6 182 9 . 42 11 321 Damage Taken 23242 | . 205 992 87 514 730 1984 974 1150 353 . 185 4156 77 . 2602 723 8510 Core 2866 | . 42 100 45 38 241 231 68 68 . . 33 288 20 . 353 17 1322 Absorbed by Shields 377 | . . . . . . . . . . . . . . . 315 28 34 Redirected to Shielding 167 | . . . . . . . . . . . . 87 . . 80 . . Ignored by Resistances 8216 | . 67 274 25 148 193 565 335 319 146 . 56 1239 23 . 790 204 3832 Regen/Repaired (Parts) 6772 | . 65 . . 25 . 1049 126 665 . . . 2901 . . 448 246 1247 Core Remaining (%) 57 | 100 . . 25 . . 40 . . . . 83 . . . . 41 . Volleys Fired 714 | 6 35 62 29 29 20 118 36 31 10 9 12 186 14 2 16 18 81 Largest 4 | 2 2 2 2 3 3 3 3 3 3 3 3 3 2 1 2 3 4 Hottest 494 | 40 80 136 53 153 239 245 268 403 138 163 163 364 494 75 178 289 316 Shots Fired 1779 | 12 69 117 58 83 46 288 106 76 24 27 29 518 24 2 27 39 234 Gun 1296 | 12 68 77 58 64 24 268 45 45 20 27 29 400 11 2 3 12 131 Cannon 454 | . 1 40 . 19 16 20 61 28 . . . 118 10 . 20 27 94 Launcher 16 | . . . . . . . . 3 4 . . . 1 . 4 . 4 Special 13 | . . . . . 6 . . . . . . . 2 . . . 5 Kinetic 544 | 12 32 77 58 58 14 10 . 10 10 9 12 99 2 . 16 4 121 Thermal 1083 | . . 2 . 25 32 278 106 63 10 18 17 417 21 2 . 26 66 Explosive 16 | . . . . . . . . 3 4 . . . 1 . 4 . 4 Electromagnetic 77 | . 37 38 . . . . . . . . . 2 . . . . . Entropic 59 | . . . . . . . . . . . . . . . 7 9 43 Robot Hit Streak 65 | 5 18 31 17 16 26 31 11 23 8 12 11 65 8 5 11 12 22 Robot Miss Streak 6 | 1 2 5 1 2 1 4 2 2 6 1 1 3 4 . 2 2 2 Penetration Max 2 | . . . . . . . . . 1 . 1 2 . . . . 1 Secondary Targets 23 | . 3 2 . 1 . 4 . . 1 . 2 9 . . . . 1 Max Gunslinging Chain 2 | . 1 1 . 1 . 1 . . 1 . 2 2 . . . . 1 Shots Hit Robots 1346 | 8 53 97 45 67 46 222 51 55 16 20 23 377 9 1 14 30 212 Core Hits 719 | 4 23 32 16 31 9 103 23 39 37 7 13 152 23 1 82 8 116 Critical Kills 17 | . . . . . 1 . 3 1 . . 1 9 . . . . 2 Critical Parts Destroyed 17 | . . 2 1 . 1 4 . . 1 . . 2 . . . . 6 Critical Strikes 90 | . . 3 1 3 5 23 3 1 1 . 1 19 . . 1 1 28 Burn 31 | . . . . 1 1 18 . . . . . 8 . . . . 3 Meltdown 8 | . . . . . 1 . 2 . . . . 5 . . . . . Destroy 22 | . . 1 1 . . 4 1 1 1 . 1 6 . . . . 6 Blast 3 | . . . . 2 . 1 . . . . . . . . . . . Corrupt 1 | . . 1 . . . . . . . . . . . . . . . Smash 4 | . . 1 . . 3 . . . . . . . . . . . . Sever 5 | . . . . . . . . . . . . . . . . . 5 Detonate 2 | . . . . . . . . . . . . . . . . . 2 Sunder 14 | . . . . . . . . . . . . . . . 1 1 12 Melee Attacks 134 | . 29 41 . . 3 . . . . . . . . . . . 61 Impact 73 | . 29 41 . . 3 . . . . . . . . . . . . Slashing 29 | . . . . . . . . . . . . . . . . . 29 Piercing . | . . . . . . . . . . . . . . . . . . Entropic 32 | . . . . . . . . . . . . . . . . . 32 Sneak Attacks 9 | . 2 1 . . . . . . . . . . . . . . 6 Combat Hostiles . | . . . . . . . . . . . . . . . . . . Follow-up Attacks . | . . . . . . . . . . . . . . . . . . Damage Inflicted 47654 | 94 808 1706 813 1522 1192 5538 2222 2108 1422 568 545 12180 818 44 3190 1385 11499 Guns 23392 | 94 693 935 813 902 453 4340 671 846 352 568 545 8574 127 44 150 413 2872 Cannons 11798 | . 25 633 . 533 550 489 1145 688 . . . 3606 211 . 553 972 2393 Explosions 7834 | . . . . 87 . 709 406 574 1070 . . . 480 . 2487 . 2021 Melee 4552 | . 90 138 . . 133 . . . . . . . . . . . 4191 Ramming 22 | . . . . . . . . . . . . . . . . . 22 Kinetic 9654 | 94 256 935 813 1005 425 324 . 148 178 200 228 2238 106 . 409 131 2164 Thermal 22640 | . . 59 . 430 634 4505 2056 1386 174 368 317 9892 232 44 . 779 1764 Explosive 7306 | . . . . 87 . 709 166 574 1070 . . . 480 . 2487 . 1733 Electromagnetic 1086 | . 462 574 . . . . . . . . . 50 . . . . . Impact 361 | . 90 138 . . 133 . . . . . . . . . . . . Slashing 1365 | . . . . . . . . . . . . . . . . . 1365 Piercing . | . . . . . . . . . . . . . . . . . . Entropic 5220 | . . . . . . . . . . . . . . . 294 475 4451 Highest Corruption 23 | . . . 1 4 23 23 2 2 2 2 . 3 . . 1 1 12 Average Corruption 5 | . . . 1 4 14 14 1 1 2 1 . 1 . . 1 1 2 Corruption Purged 40 | . . . 1 . . 25 . 2 . 2 . 5 . . . . 5 Corruption Blocked 6 | . . . . . . . . . . . . . . . 6 . . Effects 127 | . . . . 2 12 66 1 9 1 1 . 4 . . 5 12 14 Message Errors 26 | . . . . 1 2 11 . 3 . . . 2 . . 1 2 4 Matter Fused 33 | . . . . . 3 17 . 1 . 1 . 1 . . 3 4 3 Heat Flow Errors 15 | . . . . . 1 11 . 1 . . . . . . . 1 1 Energy Discharges 17 | . . . . . 3 9 . . . . . . . . 1 1 3 Parts Rejected 2 | . . . . . . . 1 . . . . . . . . . 1 Data Loss (minor) 14 | . . . . . 1 8 . 2 . . . 1 . . . 2 . Data Loss (major) 4 | . . . . . . 2 . . 1 . . . . . . 1 . Misfires 6 | . . . . . . 4 . . . . . . . . . 1 1 Alerts 5 | . . . . 1 . 2 . 2 . . . . . . . . . Misdirections 2 | . . . . . 2 . . . . . . . . . . . . Weapon Failures 3 | . . . . . . 2 . . . . . . . . . . 1 Overload Shots 89 | . . . . . . 1 16 8 . . . 50 2 . . 12 . Effects 9 | . . . . . . 1 . 2 . . . 5 . . . 1 . Energy Bleed 4 | . . . . . . 1 . 1 . . . 1 . . . 1 . Heat Surge 5 | . . . . . . . . 1 . . . 4 . . . . . Overflow Damage 1259 | . 28 60 . 6 38 44 211 11 . . . 40 15 . 43 68 695 Projectiles 363 | . . . . 6 . 23 119 11 . . . 40 2 . 43 68 51 Explosions 246 | . . . . . . 21 92 . . . . . 13 . . . 120 Melee 650 | . 28 60 . . 38 . . . . . . . . . . . 524 Knockbacks 22 | . . 2 . 2 . 1 . . . . . . . . 3 1 13 Impact 2 | . . 2 . . . . . . . . . . . . . . . Kinetic 19 | . . . . 2 . 1 . . . . . . . . 3 1 12 Secondary 1 | . . . . . . . . . . . . . . . . . 1 Self-Inflicted Damage 380 | . . . . . . 127 . 13 49 . . . . . 121 . 70 Shots 12 | . . . . . . 2 . 1 2 . . . . . 5 . 2 Rammed 2 | . . . . . . . . . . . . . . . . . 2 Targets Rammed 4 | . . . . . . . . . . . . . . . . . 4 Kicked 2 | . . . . . . . . . . . . . . . . . 2 Crushed . | . . . . . . . . . . . . . . . . . . Highest Temperature 624 | . 102 202 30 325 206 464 378 421 . . . 504 324 . 129 624 296 Average Temperature 98 | . 30 93 8 121 62 114 114 109 . . . 117 118 . 47 205 58 Received Heat Transfer 5665 | . 117 752 36 240 . 777 87 381 54 . 30 715 9 . 207 70 2190 Effects 22 | . . . . . . 5 3 2 . . . 9 . . . 3 . Shutdowns 6 | . . . . . . 1 1 . . . . 3 . . . 1 . Energy Bleed 2 | . . . . . . 1 . . . . . . . . . 1 . Interference 10 | . . . . . . 3 . 2 . . . 5 . . . . . Matter Decay 1 | . . . . . . . 1 . . . . . . . . . . Short Circuit 2 | . . . . . . . 1 . . . . . . . . 1 . Damage (major) 1 | . . . . . . . . . . . . 1 . . . . . Siege Activations . | . . . . . . . . . . . . . . . . . . Robots Corrupted 2 | . . 2 . . . . . . . . . . . . . . . Combat Hostiles 2 | . . 2 . . . . . . . . . . . . . . . Parts Fried 14 | . 8 6 . . . . . . . . . . . . . . . Impact Corruptions 4 | . 2 1 . . 1 . . . . . . . . . . . . Robots Melted 28 | . . . . . 1 12 3 1 . . . 9 . . . . 2 Combat Hostiles 25 | . . . . . 1 9 3 1 . . . 9 . . . . 2 Parts Melted 128 | . . . . . 4 40 13 4 1 . 1 56 . . . . 9 Heat Transferred 36660 | . . 74 . 840 1589 11191 2371 1947 259 518 518 13965 272 74 . 450 2592 Parts Sabotaged 5 | . . . . . . . . . . . . 2 . . 3 . . Parts Stolen . | . . . . . . . . . . . . . . . . . . Parts Stripped . | . . . . . . . . . . . . . . . . . . Power Chain Reactions . | . . . . . . . . . . . . . . . . . . Alert | -11 -10 -10 -8 -6 -6 -6 -5 -5 -5 -5 -4 -4 -4 -4 -4 -3 -3 ------- Run | Yrd Mat Sub Rec Fac Was Fac Fac Upp Upp Zhi Pro Fac Upp Upp War Pro Res Peak Influence 1270 | 15 310 . 263 966 208 707 911 . . . . 1270 . . . . 874 Initial 650 | . 8 . 206 650 208 94 197 . . . . 85 . . . . . Average 367 | 5 127 . 108 782 170 207 550 . . . . 648 . . . . 405 Maximum Alert Level 4 | . 1 . 1 3 1 3 3 . . . . 4 . . . . 3 Low Security (%) 41 | 100 75 . 72 . 79 62 3 . . . . 8 . . . . 36 Level 1 16 | . 24 . 27 . 20 11 8 . . . . 25 . . . . 7 Level 2 28 | . . . . 41 . 25 82 . . . . 23 . . . . 48 Level 3 9 | . . . . 58 . . 5 . . . . 25 . . . . 7 Level 4 3 | . . . . . . . . . . . . 16 . . . . . Level 5 . | . . . . . . . . . . . . . . . . . . High Security . | . . . . . . . . . . . . . . . . . . Max Security . | . . . . . . . . . . . . . . . . . . Squads Dispatched 58 | . 1 . . 1 . 10 11 . . . . 15 . . . . 20 Investigation 20 | . 1 . . 1 . 4 6 . . . . 4 . . . . 4 Extermination 15 | . . . . . . 3 3 . . . . 4 . . . . 5 Reinforcement 10 | . . . . . . 2 2 . . . . 3 . . . . 3 Assault 5 | . . . . . . . . . . . . 1 . . . . 4 Garrison 8 | . . . . . . 1 . . . . . 3 . . . . 4 Intercept . | . . . . . . . . . . . . . . . . . . Searches Triggered 2 | . . . . 1 . . 1 . . . . . . . . . . Construction Impeded 3 | . . . . . . . . . . . . 1 . . . . 2 Haulers Reinforced 2 | . . . . . . 1 . . . . . . . . . . 1 Active Scanning Responses . | . . . . . . . . . . . . . . . . . . Cargo Convoy Interrupts . | . . . . . . . . . . . . . . . . . . Stealth | -11 -10 -10 -8 -6 -6 -6 -5 -5 -5 -5 -4 -4 -4 -4 -4 -3 -3 --------- Run | Yrd Mat Sub Rec Fac Was Fac Fac Upp Upp Zhi Pro Fac Upp Upp War Pro Res Distress Signals 9 | . 2 . . . . . . . . . . 4 . . 1 . 2 Communications Jammed . | . . . . . . . . . . . . . . . . . . Distress Signals . | . . . . . . . . . . . . . . . . . . Times Spotted 447 | . 15 52 2 9 7 58 38 30 9 . 6 79 5 . 35 3 99 Peak Tracking Total 13 | . 6 4 1 3 4 5 9 11 5 . 4 7 5 . 12 1 13 Tactical Retreats 40 | . . 5 . . . 5 7 5 1 . . 4 . . 1 . 12 Traps | -11 -10 -10 -8 -6 -6 -6 -5 -5 -5 -5 -4 -4 -4 -4 -4 -3 -3 ------- Run | Yrd Mat Sub Rec Fac Was Fac Fac Upp Upp Zhi Pro Fac Upp Upp War Pro Res Traps Triggered 16 | . 3 1 . 1 . 3 4 . . . . 2 . . . . 2 Indirectly . | . . . . . . . . . . . . . . . . . . Trap Hack Attempts . | . . . . . . . . . . . . . . . . . . Triggered . | . . . . . . . . . . . . . . . . . . Disarmed . | . . . . . . . . . . . . . . . . . . Reprogrammed . | . . . . . . . . . . . . . . . . . . Reused 3 | . . . . . . . . . . . . . . . . . 3 Traps Extracted 1 | . . . . . . . . . . . . . . . . . 1 Installed 4 | . . . . . . . . . . . . . . . . . 4 Triggered 17 | . . . . . . . . . 1 . . . . . 13 . 3 Most Traps Carried 5 | . . . . . . . . . . . 2 2 . . . 5 5 Objects Rigged 14 | . 3 . . . . 5 6 . . . . . . . . . . Exploded 4 | . . . . . . 2 2 . . . . . . . . . . Machines | -11 -10 -10 -8 -6 -6 -6 -5 -5 -5 -5 -4 -4 -4 -4 -4 -3 -3 ---------- Run | Yrd Mat Sub Rec Fac Was Fac Fac Upp Upp Zhi Pro Fac Upp Upp War Pro Res Machines Disabled 42 | . . . 1 16 . 7 9 . . . . 3 2 . 1 . 3 Max in Single Turn 5 | . . . 1 5 . 5 4 . . . . 1 1 . 1 . 1 Garrison Access 3 | . . . . . . 2 . . . . . . . . . . 1 Machines Repaired . | . . . . . . . . . . . . . . . . . . Machines Dismantled 3 | . . . . . . . . . . . . . 1 . 1 . 1 Machines Sabotaged 1 | . . . . . . . 1 . . . . . . . . . . Overloaded Fab Kills . | . . . . . . . . . . . . . . . . . . Hacking | -11 -10 -10 -8 -6 -6 -6 -5 -5 -5 -5 -4 -4 -4 -4 -4 -3 -3 --------- Run | Yrd Mat Sub Rec Fac Was Fac Fac Upp Upp Zhi Pro Fac Upp Upp War Pro Res Machines Accessed 96 | . 11 . 13 2 . 14 12 1 . 9 . 9 2 . 9 1 13 Terminals 36 | . 8 . 5 1 . 6 6 . . . . 2 . . . 1 7 Fabricators 7 | . . . . . . 3 1 . . . . 1 . . . . 2 Repair Stations 9 | . 1 . . . . 2 2 . . . . 2 . . . . 2 Recycling Units 15 | . 2 . 8 . . 1 2 . . . . 2 . . . . . Scanalyzers 5 | . . . . 1 . . 1 . . . . 1 . . . . 2 Garrison Access 3 | . . . . . . 2 . . . . . 1 . . . . . Total Hacks 307 | . 44 . 46 11 . 46 35 1 . 48 . 25 2 . 14 1 34 Successful 227 | . 30 . 34 10 . 29 22 1 . 48 . 18 2 . 14 1 18 Failed 80 | . 14 . 12 1 . 17 13 . . . . 7 . . . . 16 Catastrophic 8 | . . . 1 1 . 2 3 . . . . 1 . . . . . Database Lockouts . | . . . . . . . . . . . . . . . . . . Manual 148 | . 34 . 32 3 . 25 25 . . . . 13 . . . . 16 Terminals 125 | . 31 . 21 3 . 23 21 . . . . 7 . . . 1 18 Fabricators 22 | . . . . . . 12 3 . . . . 1 . . . . 6 Repair Stations 24 | . 6 . . . . 6 4 . . . . 4 . . . . 4 Recycling Units 41 | . 7 . 25 . . 1 2 . . . . 6 . . . . . Scanalyzers 24 | . . . . 8 . . 5 . . . . 5 . . . . 6 Garrison Access 6 | . . . . . . 4 . . . . . 2 . . . . . Terminal Hacks 97 | . 7 . 8 . . 5 3 1 . 48 . 2 2 . 14 1 6 Record 51 | . . . . . . . . . . 36 . . 1 . 13 1 . Part Schematic 6 | . . . 2 . . . . . . 4 . . . . . . . Robot Schematic 9 | . 1 . 3 . . 3 . . . . . . . . . . 2 Robot Analysis 12 | . 3 . 2 . . . 2 . . 4 . . . . . . 1 Prototype ID Bank 4 | . . . . . . . . . . 4 . . . . . . . Open Door 3 | . . . . . . . . 1 . . . . 1 . 1 . . Level Access Points 1 | . . . . . . . . . . . . . . . . . 1 Branch Access Points 1 | . . . . . . 1 . . . . . . . . . . . Terminal Index 4 | . 1 . . . . . 1 . . . . 1 . . . . 1 Unreport Threat 4 | . . . 1 . . 1 . . . . . 1 . . . . 1 Zone Layout 2 | . 2 . . . . . . . . . . . . . . . . Fabricator Hacks 9 | . . . . . . 6 1 . . . . . . . . . 2 Load Schematic 5 | . . . . . . 3 1 . . . . . . . . . 1 Build 4 | . . . . . . 3 . . . . . . . . . . 1 Repair Station Hacks 18 | . 6 . . . . 4 2 . . . . 3 . . . . 3 Scan Component 9 | . 3 . . . . 2 1 . . . . 2 . . . . 1 Repair 8 | . 3 . . . . 2 1 . . . . 1 . . . . 1 Refit 1 | . . . . . . . . . . . . . . . . . 1 Recycling Unit Hacks 11 | . 3 . 5 . . 1 2 . . . . . . . . . . Retrieve Components 11 | . 3 . 5 . . 1 2 . . . . . . . . . . Scanalyzer 16 | . . . . 8 . . 3 . . . . 4 . . . . 1 Insert Component 9 | . . . . 4 . . 2 . . . . 2 . . . . 1 Analyze 7 | . . . . 4 . . 1 . . . . 2 . . . . . Garrison Access Hacks 2 | . . . . . . 2 . . . . . . . . . . . Seal Access 2 | . . . . . . 2 . . . . . . . . . . . Unauthorized Hacks 74 | . 14 . 21 2 . 11 11 . . . . 9 . . . . 6 Terminals 38 | . 11 . 5 2 . 8 7 . . . . 3 . . . . 2 Track 11 | . 4 . 1 1 . 2 1 . . . . 2 . . . . . Botnet 21 | . 6 . 4 1 . 4 4 . . . . 1 . . . . 1 Detonate 3 | . 1 . . . . 1 1 . . . . . . . . . . Disrupt 1 | . . . . . . . . . . . . . . . . . 1 Operators 1 | . . . . . . 1 . . . . . . . . . . . Sabotage 1 | . . . . . . . 1 . . . . . . . . . . Fabricators 9 | . . . . . . 3 2 . . . . 1 . . . . 3 Prioritize 1 | . . . . . . 1 . . . . . . . . . . . Liberate 4 | . . . . . . 1 1 . . . . . . . . . 2 Haulers 1 | . . . . . . 1 . . . . . . . . . . . Download 1 | . . . . . . . 1 . . . . . . . . . . Recompile 2 | . . . . . . . . . . . . 1 . . . . 1 Repair Stations 1 | . . . . . . . 1 . . . . . . . . . . Mechanics 1 | . . . . . . . 1 . . . . . . . . . . Recycling Units 23 | . 3 . 16 . . . . . . . . 4 . . . . . Reject 11 | . 1 . 8 . . . . . . . . 2 . . . . . Recyclers 3 | . 1 . 1 . . . . . . . . 1 . . . . . Mask 5 | . 1 . 3 . . . . . . . . 1 . . . . . Tunnel 4 | . . . 4 . . . . . . . . . . . . . . Scanalyzers 3 | . . . . . . . 1 . . . . 1 . . . . 1 Extract 3 | . . . . . . . 1 . . . . 1 . . . . 1 Garrison Access . | . . . . . . . . . . . . . . . . . . Data Cores Recovered 1 | . . . . . . 1 . . . . . . . . . . . Used 1 | . . . . . . 1 . . . . . . . . . . . Hacking Detections 62 | . 7 . 12 2 . 12 9 . . . . 8 . . . . 12 Full Trace Events 20 | . 1 . 9 1 . 4 3 . . . . 1 . . . . 1 Feedback Events 1 | . . . 1 . . . . . . . . . . . . . . Corruption 1 | . . . 1 . . . . . . . . . . . . . . Feedback Blocked . | . . . . . . . . . . . . . . . . . . Robot Schematics Acquired 9 | . 1 . 3 . . 3 . . . . . . . . . . 2 Robots Built 6 | . . . . . . 6 . . . . . . . . . . . Authchips 2 | . . . . . . 2 . . . . . . . . . . . Time 116 | . . . . . . 116 . . . . . . . . . . . Total Robot Build Rating 18 | . . . . . . 18 . . . . . . . . . . . Part Schematics Acquired 20 | . . . 2 4 . . 3 . . 4 . 3 . . . . 4 Parts Built 3 | . . . . . . 2 . . . . . . . . . . 1 Authchips 1 | . . . . . . 1 . . . . . . . . . . . Time 88 | . . . . . . 42 . . . . . . . . . . 46 Total Part Build Rating 17 | . . . . . . 8 . . . . . . . . . . 9 Parts Repaired 8 | . 3 . . . . 2 1 . . . . 1 . . . . 1 Time 282 | . 88 . . . . 78 70 . . . . 28 . . . . 18 Parts Recycled . | . . . . . . . . . . . . . . . . . . Recycled Matter . | . . . . . . . . . . . . . . . . . . Retrieved Matter . | . . . . . . . . . . . . . . . . . . Retrieved Components 27 | . 8 . 4 . . 2 13 . . . . . . . . . . Parts Scanalyzed 8 | . . . . 4 . . 1 . . . . 2 . . . . 1 Part Schematics Acquired 7 | . . . . 4 . . 1 . . . . 2 . . . . . Parts Damaged 1 | . . . . 1 . . . . . . . . . . . . . Bothacking | -11 -10 -10 -8 -6 -6 -6 -5 -5 -5 -5 -4 -4 -4 -4 -4 -3 -3 ------------ Run | Yrd Mat Sub Rec Fac Was Fac Fac Upp Upp Zhi Pro Fac Upp Upp War Pro Res Used RIF Installer . | . . . . . . . . . . . . . . . . . . Robots Hacked . | . . . . . . . . . . . . . . . . . . Non-combat . | . . . . . . . . . . . . . . . . . . Combat . | . . . . . . . . . . . . . . . . . . Robot Hacks Applied . | . . . . . . . . . . . . . . . . . . Relay Couplers Released 3 | . . . . . . . . . . . . . . . . . 3 Machine Destruction 3 | . . . . . . . . . . . . . . . . . 3 Fabnet Peak Effective % . | . . . . . . . . . . . . . . . . . . Robots Rewired 2 | . . . . . . . . 2 . . . . . . . . . Allies Hacked . | . . . . . . . . . . . . . . . . . . Hacks Repelled . | . . . . . . . . . . . . . . . . . . Allies | -11 -10 -10 -8 -6 -6 -6 -5 -5 -5 -5 -4 -4 -4 -4 -4 -3 -3 -------- Run | Yrd Mat Sub Rec Fac Was Fac Fac Upp Upp Zhi Pro Fac Upp Upp War Pro Res Total Allies 11 | . . . . . . 6 . 2 . . . . . . . . 3 Largest Group 6 | . . . . . . 6 . 2 2 1 1 1 . . . . 3 Highest-Rated Group 141 | . . . . . . 96 . 58 58 29 29 29 . . . . 141 Highest-Rated Ally 47 | . . . . . . 16 . 29 29 29 29 29 . . . . 47 Total Orders . | . . . . . . . . . . . . . . . . . . Ally Attacks 89 | . . . . . . 69 . . 11 . 3 1 . . . . 5 Total Damage 879 | . . . . . . 608 . . 173 . 19 23 . . . . 56 Kills 10 | . . . . . . 8 . . 1 . 1 . . . . . . Allies Corrupted 1 | . . . . . . 1 . . . . . . . . . . . Allies Melted . | . . . . . . . . . . . . . . . . . . Intel | -11 -10 -10 -8 -6 -6 -6 -5 -5 -5 -5 -4 -4 -4 -4 -4 -3 -3 ------- Run | Yrd Mat Sub Rec Fac Was Fac Fac Upp Upp Zhi Pro Fac Upp Upp War Pro Res Robot Analysis Total 12 | . 3 . 2 . . . 2 . . 4 . . . . . . 1 Derelict Logs Recovered 8 | . . 1 . . . . . 2 1 . 2 . 1 1 . . . Drone Launches . | . . . . . . . . . . . . . . . . . . Drone Recoveries . | . . . . . . . . . . . . . . . . . . Exploration | -11 -10 -10 -8 -6 -6 -6 -5 -5 -5 -5 -4 -4 -4 -4 -4 -3 -3 ------------- Run | Yrd Mat Sub Rec Fac Was Fac Fac Upp Upp Zhi Pro Fac Upp Upp War Pro Res Turns Passed 18440 | 76 1063 2018 1479 533 273 2856 1099 517 222 197 216 2421 518 239 1164 1480 2069 Spaces Moved 14380 | 52 645 1414 758 214 118 1838 1944 794 269 199 370 2001 646 400 756 700 1262 Core 8 | 8 . . . . . . . . . . . . . . . . . Treads 1137 | . . . 177 60 82 779 . . . . . . . . 9 13 17 Legs 4480 | . . . . 154 36 168 . 704 269 199 370 663 . . 404 687 826 Wheels 2691 | 44 645 1414 581 . . . . . . . . . . . 7 . . Hover 277 | . . . . . . . . . . . . 276 . . . . 1 Flight 5787 | . . . . . . 891 1944 90 . . . 1062 646 400 336 . 418 Fastest Speed 38 | 50 80 105 130 120 120 38 43 43 43 43 43 43 54 54 54 105 44 Average Speed 88 | 75 105 117 177 140 143 88 43 43 43 43 43 73 61 54 131 160 92 Slowest Speed 583 | 80 155 155 320 190 190 160 118 43 43 43 43 239 193 54 583 178 305 Overloaded Moves . | . . . . . . . . . . . . . . . . . . Propulsion Burnouts . | . . . . . . . . . . . . . . . . . . Robots Hopped 14 | . . . . . . 2 6 . . . . 4 . . . . 2 Cave-ins Triggered . | . . . . . . . . . . . . . . . . . . Exploration Rate (%) 57 | 4 90 77 98 5 82 42 42 75 45 62 50 38 70 55 88 81 32 Regions Visited 17 Branch Regions 10 Pre-discovered Areas 10 | . . . 4 . . . . . . 3 1 . . . 2 . . Known Exits Taken 7 | . . . . . . . 1 . 1 . 1 1 1 1 . 1 . Unknown Exits Taken 8 | 1 1 1 1 . . 1 . 1 . 1 . . . . 1 . . Scrap Searched 15 | . . 3 . . . . . 2 . . . . 2 5 . 3 . Spaces Dug 25 | . 8 5 . . . . 6 . . . . 3 3 . . . . Terrain Destroyed 592 | . 8 5 2 39 . 25 95 106 81 . . 55 12 . 28 8 128 Melee 13 | . 8 5 . . . . . . . . . . . . . . . Projectile 146 | . . . 2 3 . 2 18 5 . . . 55 5 . 2 8 46 AOE 433 | . . . . 36 . 23 77 101 81 . . . 7 . 26 . 82 Terrain Rammed . | . . . . . . . . . . . . . . . . . . Walls Destroyed . | . . . . . . . . . . . . . . . . . . Machines Disabled . | . . . . . . . . . . . . . . . . . . Actions | -11 -10 -10 -8 -6 -6 -6 -5 -5 -5 -5 -4 -4 -4 -4 -4 -3 -3 --------- Run | Yrd Mat Sub Rec Fac Was Fac Fac Upp Upp Zhi Pro Fac Upp Upp War Pro Res Total 18395 | 77 919 1581 838 389 174 2857 2118 904 348 289 402 2558 734 421 888 1025 1873 Wait 2105 | . 134 17 . 73 12 740 94 45 63 54 11 258 38 2 15 277 272 Move 14339 | 51 644 1413 757 214 117 1835 1932 793 268 198 369 1992 645 399 755 699 1258 Hop 11 | . . . . . . . 5 . . . . 4 . . . . 2 Pick Up 390 | 13 41 14 23 25 6 67 19 9 2 9 4 45 11 5 37 7 53 Fast Attach . | . . . . . . . . . . . . . . . . . . Attach 185 | 7 12 6 4 17 7 30 6 3 . 3 1 19 2 1 20 7 40 Detach 18 | . . . . . . 5 . 2 . . . 1 . . . 3 7 Swap 163 | . 5 16 9 11 4 19 15 4 3 8 1 17 7 5 16 5 18 Drop 266 | . 19 12 16 20 5 42 11 8 2 8 4 36 8 7 21 9 38 Fire 714 | 6 35 62 29 29 20 118 36 31 10 9 12 186 14 2 16 18 81 Melee 134 | . 29 41 . . 3 . . . . . . . . . . . 61 Ram 1 | . . . . . . . . . . . . . . . . . 1 Kick 2 | . . . . . . . . . . . . . . . . . 2 Crush 1 | . . . . . . . . . . . . . . . . . 1 Escape Stasis . | . . . . . . . . . . . . . . . . . . Rewire 10 | . . . . . . 1 . 9 . . . . . . . . . Trap 4 | . . . . . . . . . . . . . . . . . 4 Miscellaneous 52 | . . . . . . . . . . . . . 9 . 8 . 35 Route ------- -11/Scrapyard -10/Materials (discovered 6 exits: [*Mat x3] / [*Min x2] / [*Sub]) -10/Subcaves (discovered 2 exits: [*Mat] / *Rec) -8/Recycling -6/Factory -6/Waste -6/Factory (discovered 4 exits: *Fac x2 / Low x2) -5/Factory (discovered 4 exits: *Fac x2 / *Upp x2) -5/Upper Caves -5/Upper Caves -5/Zhirov -4/Proximity Caves -4/Factory (discovered 3 exits: *Res x2 / *Upp) -4/Upper Caves -4/Upper Caves (discovered 2 exits: *Res / *War) -4/Warlord -3/Proximity Caves -3/Research (discovered 4 exits: Res x3 / Tes) History --------- Turn | Location | Event 7 | -11/Scrapyard | Discovered new exit (range 16) 77 | -11/Scrapyard | Entered Materials 138 | -10/Materials | Discovered new exit (range 14) 324 | -10/Materials | Build established: Mutant 454 | -10/Materials | Discovered new exit (range 3) 487 | -10/Materials | Discovered new exit (range 11) 703 | -10/Materials | Discovered new exit (range 7) 779 | -10/Materials | Repaired Corrupted Lgt. Treads 808 | -10/Materials | Repaired Ion Engine 835 | -10/Materials | Repaired Wheel 893 | -10/Materials | Discovered new exit (range 15) 1136 | -10/Materials | Discovered new exit (range 2) 1140 | -10/Materials | Entered Subcaves 1371 | -10/Subcaves | Learned 2 Materials zone layouts 1398 | -10/Subcaves | Ambushed by angry Subdweller bent on revenge 1472 | -10/Subcaves | Shifting Twisted Machinery released Battle Rifle 1472 | -10/Subcaves | Discovered new exit (range 13) 1512 | -10/Subcaves | A swath of the cavern ceiling suddenly collapsed 1778 | -10/Subcaves | Ambushed by angry Subdweller bent on revenge 2903 | -10/Subcaves | A swath of the cavern ceiling suddenly collapsed 3125 | -10/Subcaves | Discovered new exit (range 8) 3130 | -10/Subcaves | Core integrity fell below 50% 3158 | -10/Subcaves | Entered Recycling 3158 | -8/Recycling | Found Scrap Engine 3788 | -8/Recycling | Build established: Scavenger-Mutant 4366 | -8/Recycling | Discovered new exit (range 16) 4440 | -8/Recycling | Build established: Mutant 4637 | -8/Recycling | Entered Factory 4637 | -6/Factory | Evolved 8 slots: Propulsion x4, Utility x3, Weapon x1 4960 | -6/Factory | Build established: Scavenger-Tank 4987 | -6/Factory | Search patrols dispatched 5170 | -6/Factory | Sucked down chute 5170 | -6/Factory | Entered Waste 5181 | -6/Waste | Spotted C-40 Crusher 5185 | -6/Waste | EMP discharged 5185 | -6/Waste | System corruption reached 10% 5205 | -6/Waste | Spotted C-40 Crusher 5206 | -6/Waste | Spotted C-40 Crusher 5226 | -6/Waste | Crushed by Compactor (1 part destroyed, 2 dropped) 5228 | -6/Waste | Destroyed C-40 Crusher 5230 | -6/Waste | Crushed by Compactor (0 parts destroyed, 1 dropped) 5256 | -6/Waste | Crushed by Compactor (1 part destroyed) 5260 | -6/Waste | Destroyed C-40 Crusher 5273 | -6/Waste | Spotted C-40 Crusher 5283 | -6/Waste | Crushed by Compactor (1 part destroyed) 5285 | -6/Waste | EMP discharged 5286 | -6/Waste | Crushed by Compactor (1 part destroyed, 1 dropped) 5292 | -6/Waste | Crushed by Compactor (0 parts destroyed, 1 dropped) 5294 | -6/Waste | Destroyed C-40 Crusher 5297 | -6/Waste | Crushed by Compactor (0 parts destroyed, 1 dropped) 5301 | -6/Waste | Crushed by Compactor (0 parts destroyed, 1 dropped) 5307 | -6/Waste | Crushed by Compactor (0 parts destroyed, 1 dropped) 5310 | -6/Waste | Crushed by Compactor (1 part destroyed, 1 dropped) 5319 | -6/Waste | Crushed by Compactor (0 parts destroyed, 1 dropped) 5324 | -6/Waste | Crushed by Compactor (1 part destroyed, 1 dropped) 5344 | -6/Waste | Spotted C-40 Crusher 5355 | -6/Waste | Lost 7 parts (3n1u3w) 5385 | -6/Waste | EMP discharged 5414 | -6/Waste | Spotted C-40 Crusher 5421 | -6/Waste | Discovered new exit (range 14) 5443 | -6/Waste | Entered Factory 5534 | -6/Factory | Build established: Mutant 5793 | -6/Factory | Garrison activated, responded to threat 6110 | -6/Factory | Repaired Hvy. Treads 6132 | -6/Factory | Build established: Gunner 6238 | -6/Factory | Fabricated Mak. System Restoration Module (x2) 6540 | -6/Factory | Core integrity fell below 50% 6589 | -6/Factory | Build established: Scavenger-Gunner 7139 | -6/Factory | Discovered new exit (range 15) 7438 | -6/Factory | Fabricated G-47 Trooper? 7528 | -6/Factory | Fabricated G-47 Trooper (x3) 7719 | -6/Factory | Found Unknown Device 7763 | -6/Factory | Lost 4 allies 7813 | -6/Factory | Repaired Adv. Heat Sink 7888 | -6/Factory | Identified exit to Lower Caves 8028 | -6/Factory | Build established: Construct 8210 | -6/Factory | Found Prototype Launcher 8211 | -6/Factory | Identified Scatter Rocket Array 8239 | -6/Factory | Found Scatter Rocket Array 8297 | -6/Factory | Discovered new exit (range 9) 8299 | -6/Factory | Entered another Factory area 8299 | -5/Factory | Evolved 2 slots: Power x1, Utility x1 8497 | -5/Factory | Discovered new exit (range 7) 8502 | -5/Factory | Identified exit to Upper Caves 8908 | -5/Factory | Discovered new exit (range 12) 9199 | -5/Factory | Search patrols dispatched 9264 | -5/Factory | Discovered new exit (range 15) 9337 | -5/Factory | Build established: Hacker-Construct 9349 | -5/Factory | Repaired Cld. Particle Cannon 9375 | -5/Factory | Discovered exit to Upper Caves (range 6) 9398 | -5/Factory | Entered Upper Caves 9439 | -5/Upper Caves | Attracted the attention of an 0b10 checkpoint 9478 | -5/Upper Caves | Learned Factory stockpile data 9517 | -5/Upper Caves | Encountered a Warlord checkpoint 9527 | -5/Upper Caves | Spotted B-75 Beast 9617 | -5/Upper Caves | Lost 3 allies 9699 | -5/Upper Caves | Attracted the attention of an 0b10 outpost 9822 | -5/Upper Caves | Destroyed 7 combat bots 9829 | -5/Upper Caves | Learned 8 Factory zone layouts 9850 | -5/Upper Caves | Discovered new exit (range 11) 9915 | -5/Upper Caves | Entered another Upper Caves area 9915 | -5/Upper Caves | Accompanied by 2 allies 9936 | -5/Upper Caves | Identified exit to Zhirov 10019 | -5/Upper Caves | Destroyed 8 combat bots 10137 | -5/Upper Caves | Entered Zhirov 10137 | -5/Zhirov | Accompanied by 1 ally 10137 | -5/Zhirov | Discovered new exit (range 3) 10146 | -5/Zhirov | Met Zhirov 10154 | -5/Zhirov | Learned location of Quarantine (-2) 10154 | -5/Zhirov | Learned location of Testing (-3) 10154 | -5/Zhirov | Learned location of Command (-1) 10195 | -5/Zhirov | Zhirov requested help retrieving the SGEMP Prototype 10209 | -5/Zhirov | Found Alien Artifact 10210 | -5/Zhirov | Identified Integrated Dissipator 10210 | -5/Zhirov | Installed Integrated Dissipator, increased core heat dissipation (+20) 10334 | -5/Zhirov | Entered Proximity Caves 10334 | -4/Proximity Caves | Accompanied by 1 ally 10487 | -4/Proximity Caves | Identified exit to Factory 10499 | -4/Proximity Caves | Learned location of Armory (-4) 10550 | -4/Proximity Caves | Entered Factory 10550 | -4/Factory | Accompanied by 1 ally 10550 | -4/Factory | Evolved 2 slots: Utility x2 10745 | -4/Factory | Spotted B-86 Titan 10755 | -4/Factory | Destroyed B-86 Titan 10864 | -4/Factory | Discovered new exit (range 12) 11108 | -4/Factory | Repaired Variable Charge Gun 11189 | -4/Factory | Spotted B-86 Titan 11399 | -4/Factory | Destroyed B-86 Titan 11549 | -4/Factory | Destroyed 7 combat bots 11687 | -4/Factory | Garrison activated, responded to threat 12000 | -4/Factory | Discovered new exit (range 10) 12033 | -4/Factory | Discovered new exit (range 6) 12049 | -4/Factory | Identified exit to Research 12554 | -4/Factory | Destroyed 9 combat bots 12597 | -4/Factory | First assault squad dispatched 12970 | -4/Factory | Identified exit to Upper Caves 12971 | -4/Factory | Entered Upper Caves 13106 | -4/Upper Caves | Learned 8 Research zone layouts 13148 | -4/Upper Caves | Attracted the attention of an 0b10 checkpoint 13259 | -4/Upper Caves | Found Prototype Special Weapon 13285 | -4/Upper Caves | Identified Molecular Deconstructor 13398 | -4/Upper Caves | Discovered new exit (range 9) 13403 | -4/Upper Caves | Identified exit to Upper Caves 13415 | -4/Upper Caves | Found Alien Artifact 13416 | -4/Upper Caves | Identified Dimensional Node Initializer 13416 | -4/Upper Caves | Initialized slip node 13489 | -4/Upper Caves | Entered another Upper Caves area 13517 | -4/Upper Caves | Discovered exit to Research (range 12) 13719 | -4/Upper Caves | Learned Research security intel 13722 | -4/Upper Caves | Discovered new exit (range 11) 13727 | -4/Upper Caves | Identified exit to Warlord 13728 | -4/Upper Caves | Entered Warlord 13900 | -4/Warlord | Met Warlord 13925 | -4/Warlord | Warlord's base attacked by MAIN.C 13933 | -4/Warlord | Found Prototype Hackware 13968 | -4/Warlord | Found Prototype Reactor 13994 | -4/Warlord | Found Prototype Processor 14137 | -4/Warlord | Learned Research security intel 14137 | -4/Warlord | Learned Testing security intel 14137 | -4/Warlord | Learned Armory repair station intel 14137 | -4/Warlord | Learned Armory scanalyzer intel 14137 | -4/Warlord | Learned Research scanalyzer intel 14178 | -4/Warlord | Found Prototype Device 14179 | -4/Warlord | Identified Minesniffer Drone Bay 14275 | -4/Warlord | Warlord forces counterattacked 14277 | -4/Warlord | Found Prototype Energy Gun 14279 | -4/Warlord | Identified Vortex Rail 14283 | -4/Warlord | Found Vortex Rail 14288 | -4/Warlord | Found Prototype Piercing Weapon 14289 | -4/Warlord | Identified Vortex Lance 14292 | -4/Warlord | Found Prototype Energy Cannon 14293 | -4/Warlord | Identified Vortex Cannon 14302 | -4/Warlord | Found Vortex Cannon 14482 | -4/Warlord | Identified Vortex Chain Reactor 14507 | -4/Warlord | Spotted Striker 14598 | -4/Warlord | Spotted Executioner 14599 | -4/Warlord | Spotted Executioner 14600 | -4/Warlord | Warlord base infiltrated, sounded retreat 14623 | -4/Warlord | Core integrity fell below 50% 14630 | -4/Warlord | Destroyed 7 combat bots 14670 | -4/Warlord | Lost 8 parts (2n3u3w) 14759 | -4/Warlord | Spotted Striker 14793 | -4/Warlord | Spotted Striker 14793 | -4/Warlord | Spotted Striker 14825 | -4/Warlord | Discovered new exit (range 16) 14825 | -4/Warlord | Spotted Striker 14859 | -4/Warlord | Lost 5 allies 14892 | -4/Warlord | Entered Proximity Caves 14915 | -3/Proximity Caves | Build established: Hacker-Mutant 15107 | -3/Proximity Caves | Spotted B-86 Titan 15136 | -3/Proximity Caves | Destroyed B-86 Titan 15876 | -3/Proximity Caves | Received a Behemoth hack from an annoying Tinkerer 16243 | -3/Proximity Caves | Discovered exit to Research (range 7) 16372 | -3/Proximity Caves | Entered Research 16372 | -3/Research | Evolved 2 slots: Utility x1, Weapon x1 16373 | -3/Research | Identified exit to Testing 16373 | -3/Research | Identified exit to Research 16375 | -3/Research | Loaded intel: 6 scanalyzer locations 16381 | -3/Research | Identified System Mapper 16430 | -3/Research | Fabricated Biometal Heavy Treads (x1) 16522 | -3/Research | Identified Exp. Armor Integrity Analyzer 16781 | -3/Research | Garrison activated, responded to threat 16820 | -3/Research | Spotted B-86 Titan 16872 | -3/Research | Lost 3 parts (1p1u1w) 17143 | -3/Research | Garrison activated, responded to threat 17245 | -3/Research | Destroyed 9 combat bots 17542 | -3/Research | Lost 3 parts (2u1w) 17872 | -3/Research | First assault squad dispatched 17919 | -3/Research | Repaired Imp. Dynamic Insulation System 18284 | -3/Research | Core integrity fell below 50% 18351 | -3/Research | Lost 5 parts (1p2n1u1w) 18389 | -3/Research | Core integrity fell below 20% 18412 | -3/Research | System corruption reached 10% 18441 | -3/Research | Destroyed by Y-72 Warden with Quantum Rifle Last Messages --------------- 18403_ S-43 Plague triggered Dirty Bomb Trap. 18403_ An explosion rips through the floor. 18403_ S-43 Plague destroyed. 18403_ Door malfunctions. 18403_ P-80 Master resets S-43 Plague, system corruption cleaned. 18407_ Dropped Adv. Trap Extractor. 18410_ G-67 Veteran suffers critical hit (Burn). 18410_ S-43 Plague destroyed. 18417_ U-05 Engineer repairs door. 18419_ U-05 Engineer lays Concrete. 18426_ Particle Reactor destroyed. 18432_ P-80 Master Adv. Remote Datajack severed. 18434_ System corrupted: Imp. Remote Force Field rejected. 18439_ Critical hit (Destroy). 18439_ Greatsword destroyed. 18441_ Slammed into P-80 Master. 18441_ Biometal Medium Treads destroyed. 18441_ U-05 Engineer lays Concrete. Map ----- +----------------------------------------------------+ | ?????????????????????????????????????????????????? | | ?????????????????????????????????????????????????? | | ?????????????????????????????????????????????????? | | ?????????????????????????????????????????????????? | | ?????????????????????????????????????????????????? | | ?????????????????????????????????????????????????? | | ?????????????????????????????????????????????????? | | ?????????????????????????###+##??????????????????? | | ?????????????????????????# +??????????????????? | | ?????????????????????????# #??????????????????? | | ?????????????????????????# #??????????????????? | | ????????????????????????? +??????????????????? | | ?????????????????????????# #??????????????????? | | ?????????????????????????# #??????????????????? | | ?????????????????????????# #??????????????????? | | ?????????????????????????# #????############??? | | ?????????????????????????# #????? ?? | | ????????????????#????????# #????? ??? | | ????????????????# ???????+ #??????! ??? | | ????????????????# ??????# #?????? ??? | | ????????????????? "?????# #??????? ??? | | ?????????????????? ????# #???????|] "??? | | ??????????????????? ???# #????????] ""???? | | ???? ############/#### #???????? ""???? | | ????? + gsp #p #????????? "????? | | ???????????????# |@ i #????????? "????? | | ???????????????# """"" !#gYg ; #???????? ?????? | | ???????????????# """"" # g ; #???????? ?????# | | ???????????????# """"" # =%;####""""###+####### | | ???????????????# # %! | | ???????????????# # u[% & | | ???????????????# # = | | ???????????????########### | | ?????????????????????????####;#################### | | ????????????????????????????? ?????????????????? | | ????????????????????????????? ! ????????????????# | | ????????????????????????????? ??????""""""????# | | ????????????????????????????? " ?????""S"""????# | | ????????????????????????????? " ????????"""????# | | ??####+###???# ????????????G"" ??????????????# | | ??# ##### ???????????? ??????????????# | | ??# + H???????????? ? #?????????????# | | ??# ##### ?????????????#??##?????????????# | | ??# #???# ???????????????????????????????## | | ??# #???### ????????????????????????????????? | | ??# #?????# ????????????????????????????????? | | ??####+###???### ????????????????????????????????? | | ???# ##### ????????????????????????????????? | | #### ????????????????????????????????? | | ????????????????????????????????? | +----------------------------------------------------+ Best States ------------- Heat Dissipation 139 Coolant Potential 100 Energy Generation 55 Energy Capacity 1200 Matter Stores 550 Matter Capacity 550 Sight Range 22 Terrain Scan Density 10 Additional Mass Support 9 EM Shielding 3 Armor Coverage 600 Resistance: KI 20 Resistance: TH 50 Resistance: EX 20 Resistance: EM 45 Resistance: I 20 Resistance: S 20 Resistance: P 20 Core Shielding 40 Phase Shifting 10 Evasion (%) 77 Targeting Accuracy 8 Target Analysis 8 Core Analysis 6 Armor Integrity Analysis 30 Recoil Reduction 6 Offensive Hacking 40 Defensive Hacking 20 Authchip Count 10 Trap Extractor Capacity 8 Item Schematics ----------------- Imp. Medium Armor Plating | -8/Recycling | Hacked Cmb. Airjet | -8/Recycling | Hacked Hcp. Storage Unit | -6/Factory | Scanalyzed Mak. System Restoration Module | -6/Factory | Scanalyzed Enh. Flamer | -6/Factory | Scanalyzed Hvy. Plasma Cannon | -6/Factory | Scanalyzed Hacking Suite | -5/Factory | Scanalyzed Ionic Axe | -5/Factory | Extracted Adv. Trap Extractor | -5/Factory | Extracted Assault Drone Bay | -5/Zhirov | Free Exp. Heat Sink | -5/Zhirov | Free Exp. Optical Array | -5/Zhirov | Free Imp. Arc Thrower | -5/Zhirov | Free Adv. Cooling System | -4/Factory | Scanalyzed Med. Storage Unit | -4/Factory | Scanalyzed Matter Compressor | -4/Factory | Extracted Quantum Capacitor | -3/Research | Extracted Adv. Power Amplifier | -3/Research | Extracted Lrn. Sensor Array | -3/Research | Extracted Adv. Terrain Scanner | -3/Research | Extracted Robot Schematics ------------------ M-13 Machinist | -10/Materials | Hacked H-55 Commando | -8/Recycling | Hacked T-07 Excavator | -8/Recycling | Hacked G-47 Trooper | -8/Recycling | Hacked M-28 Smith | -6/Factory | Hacked G-50 Soldier | -6/Factory | Hacked H-66 Slayer | -6/Factory | Hacked R-06 Scavenger | -3/Research | Hacked H-77 Assassin | -3/Research | Hacked Fabricated ------------ Mak. System Restoration Module | x2 | -6/Factory | Authchip G-47 Trooper | x3 | -6/Factory | Authchip G-47 Trooper | x3 | -6/Factory | Authchip Biometal Heavy Treads | x1 | -3/Research | Preloaded Alien Tech Used ----------------- Integrated Dissipator Dimensional Node Initializer Achievements -------------- None Challenges ------------ None Game ------ Seed HeavyAlertCharge Manual? 0 Play Time 03:51:21 Cumulative 504.2 hours Start 2024.07.21 @ 19:50:07 End 2024.07.21 @ 23:41:38 Sessions 1 Manual Loads 0 Difficulty Adventurer Special Mode None Game No. 91 Rogue 0 Adventurer 91 Explorer 0 Win Type - Total 6 Types 3/0/1/2/0/0/0/0/0 Lore% 61 Gallery% 81 Achievement% 69 Wizard Run 0 Options --------- Layout 2 ASCII 0 Keyboard 0 Movement Mouse Keybinds 0 Fullscreen 1 Font 24/Smallcaps Map View 50x49 Zoom Use 0% Tactical HUD 1 Map Filters NONE Filters NONE Steam 1 RUN: f8681f01-fa05-40b9-8786-88874ba2b3c1